Workbook

Sheet Пояснительная записка
A1: Сопроводительное письмо к примерному графику оценочных процедур
A3: 1. В целях оптимизации количества контрольных, проверочных и иных диагностических работ (далее – оценочные процедуры или ОП) и формирования общих подходов к определению временных объемов, количества и графика проведения оценочных процедур, а также в целях обеспечения открытости и доступности информации о системе образования разработан примерный шаблон единого графика оценочных процедур (далее – примерный график). После утверждения график оценочных процедур публикуется на сайте ОО в формате электронной таблицы Excel, которая является приложением к приказу об утверждении графика оценочных процедур.
A4: 2. Содержание примерного графика разработано на основе приказа Министерства просвещения Российской Федерации от 9 октября 2024 г. №704 «О внесении изменений в некоторые приказы Министерства просвещения Российской Федерации, касающиеся федеральных образовательных программ начального общего образования, основного общего образования и среднего общего образования», рекомендаций от 05.06.2025г. №ОК-1656/03 Министерства просвещения Российской федерации «По использованию результатов оценочных процедур в системе общего образования с целью повышения качества образования», «Рекомендаций для системы общего образования по основным подходам к формированию графика оценочных процедур в общеобразовательных организациях в 2021/2022 учебном году» от 06.08.2021г. №СК-228/03 Министерства просвещения Российской Федерации совместно с Рособрнадзором и результатах мониторинга сбалансированности системы оценки качества подготовки обучающихся, проводимого в рамках Комплекса мер по развитию в Свердловской области направления 1.1. региональной системы оценки качества образования «Система оценки качества подготовки обучающихся», утвержденного 27.04.2023г. №517-Д.
A5: 3. Примерный график содержит следующие заполняемые поля в верхней части (шапке) таблицы:
A6: · Населенный пункт (НП);
A7: · Номер ОО;
A8: · Дата приказа ОО об утверждении единого графика;
A9: · Номер приказа ОО об утверждении единого графика ОП;
A10: · Номер приказа ОО о внесении изменений в уже опубликованный единый график ОП (в случае необходимости);
A11: · Дата утверждения приказа ОО о внесении изменений в уже опубликованный единый график ОП (в случае необходимости);
A12: · Период (полугодие или год).
A13: 4. Примерный график содержит следующие заполняемые поля в левой и центральной частях таблицы:
A14: · Предмет;
A15: · Класс (с указанием буквы);
A16: · Ячейки с указанием календарных месяца и недели.
A17: · Количество ОП за заполняемый период;
A18: · Количество часов по учебному плану (каждая ОО указывает количество часов, исходя из утвержденного учебного плана);
A19: 5. Кроме этого примерный график содержит следующие поля со справочной информацией:
A20: · Список некоторых пунктов рекомендаций Федеральной службы по надзору в сфере образования и науки и приказа Минпросвещения России;
A21: · Определение ОП согласно рекомендациям Федеральной службы по надзору в сфере образования и науки;
A23: 6. Рекомендуется заполнять график с указанием наименования ОП, например, «КР» или «ВПР». Для удобства работы с примерным графиком ОП рекомендуется утвердить список сокращений, используемых при работе с графиком, отобразив его в верхней части графика и/или в приказе об утверждении единого графика оценочных процедур ОО. Каждая из ОП, внесенных в график оценочных процедур, должна иметь цветовое обозначение, а именно: цвет «зеленый» – для ОП федерального уровня, цвет «желтый» – для ОП регионального уровня, цвет «оранжевый» – для ОП школьного уровня. Для применения цветового обозначения рекомендуется использовать базовый инструмент «Цвет заливки» или «Заливка» используемого редактора таблиц.
A24: 7. Минимальной временной единицей заполнения является 1 календарный день (в соответствии с частью «в» пункта 2.1 рекомендаций Федеральной службы по надзору в сфере образования и науки).
A25: 8. Разделение графика на четверти, триместры или полугодия является рекомендуемым для удобства навигации, чтения и заполнения графика, который составляется ОО индивидуально с учетом оснащенности и контекста ОО. При необходимости удаляются лишние строки и колонки, а также добавляются новые путем базового редактирования таблицы.
A26: 9. Для подсчета количества ОП за тот или иной период рекомендуется использовать формулу «СЧЁТЗ», которая подсчитывает ячейки, содержащие данные любого типа и исключает из подсчета пустые (незаполненные ячейки). Формула «СЧЁТЗ» требует указания диапазона счета, например, =СЧЁТЗ(D9:BM9). Данный пример взят из образца примерного единого графика ОП из колонки «Количество ОП в указанном периоде».
A27: 10. Рекомендуется разрабатывать график до начала учебного года или учебного периода и размещать сформированный график не позднее чем через 2 недели после начала учебного года либо после начала полугодия, на которое формируется график, на сайте ОО на главной странице подраздела «Документы» раздела «Сведения об образовательной организации» в виде электронного документа.

Sheet График оценочных процедур
A1: Приложение 1 к приказу от 29.08.2025г. № 175-25 од | L1: График оценочных процедур
A2: НП | B2: с. Чёрновское | G2: Определение оценочных процедур (ОП):
A3: ОО | B3: МАОУ Черновская СОШ | G3: Контрольные, проверочные и диагностические работы, которые выполняются всеми обучающимися в классе одновременно и длительность которых составляет не менее 30 минут. Все перечисленные виды работ называются оценочными процедурами. | X3: Внутренняя оценочная процедура: | AC3: Длительность контрольной работы, являющейся формой письменной проверки результатов обучения с целью оценки уровня достижения предметных и (или) метапредметных результатов, на уровне НОО составляет один урок (не более чем 45 минут), контрольные работы проводятся, начиная со 2 класса; на уровне ООО и СОО составляет от одного до двух уроков (не более чем 45 минут каждый). | AN3: Уровни ОП | AP3: Федеральный
A4: Утверждено | G4: Положения Рекомендаций Рособрнадзора: | X4: · стартовая диагностика; · текущая оценка; · тематическая оценка; · итоговая оценка | AP4: Региональный
A5: Приказ № | B5: 175-25 од | C5: Приказ об изменениях | G5: - проводить оценочные процедуры по каждому учебному предмету в одной параллели классов не чаще 1 раза в 2,5 недели. При этом объем учебного времени, затрачиваемого на проведение оценочных процедур, не должен превышать 10% от всего объема учебного времени, отводимого на изучение данного учебного предмета в данной параллели в текущем учебном году - не проводить для обучающихся одного класса более одной оценочной процедуры в день, не проводить оценочные процедуры на первом и последнем уроках, за исключением учебных - предметов, по которым проводится не более 1 урока в неделю, причем этот урок является первым или последним в расписании - не проводить оценочные процедуры на первом и последнем уроках, за исключением учебных предметов, по которым проводится не более 1 урока в неделю, причем этот урок является первым или последним в расписании. | AP5: ОО
A6: Дата утверждения | B6: 2029-08-29 | C6: Дата изменений | X6: Список сокращений видов ОП: | AC6: КР - контрольная работа, ПР - проверочная работа, ДР - диагностическая работа
A7: Период (полугодие, год) | C7: год | AC7: РСИ - региональное сопоставительное исследование
AC8: ВПР -Всероссийская проверочная работа, НСИКО - национальные сопоставительные исследования качества образования
A9: 1 класс | E9: 2025/2026 учебный год | AQ9: Всего оценочных процедур за учебный год | AR9: Количество часов по УП | AS9: % соотношения количества оценочных процедур к количеству часов по УП
A10: Оценочная процедура/предмет | C10: класс | D10: месяц | E10: сентябрь | I10: октябрь | M10: ноябрь | Q10: декабрь | U10: январь | X10: февраль | AB10: март | AE10: апрель | AJ10: май | AM10: июнь
D11: неделя | E11: 1 | F11: 2 | G11: 3 | H11: 4 | I11: 5 | J11: 6 | K11: 7 | L11: 8 | M11: 9 | N11: 10 | O11: 11 | P11: 12 | Q11: 13 | R11: 14 | S11: 15 | T11: 16 | U11: 17 | V11: 18 | W11: 19 | X11: 20 | Y11: 21 | Z11: 22 | AA11: 23 | AB11: 24 | AC11: 25 | AD11: 26 | AE11: 27 | AF11: 28 | AG11: 29 | AH11: 30 | AI11: 31 | AJ11: 32 | AK11: 33 | AL11: 34 | AM11: 35 | AN11: 36 | AO11: 37 | AP11: 38
A12: Оценочные процедуры | B12: Русский язык | C12: 1а | AL12: КР | AQ12: =COUNTA(E12:AP12) -> 1 | AR12: =33*5 -> 165 | AS12: =AQ12/AR12 -> 1%
C13: 1б | AL13: КР | AQ13: =COUNTA(E13:AP13) -> 1 | AR13: =33*5 -> 165 | AS13: =AQ13/AR13 -> 1%
B14: Математика | C14: 1а | AQ14: =COUNTA(E14:AP14) -> 0 | AR14: =33*4 -> 132 | AS14: 0%
C15: 1б | AQ15: 0 | AR15: 132 | AS15: 0%
B16: Литературное чтение | C16: 1а | AQ16: =COUNTA(E16:AP16) -> 0 | AR16: 132 | AS16: 0%
C17: 1б | AQ17: =COUNTA(E17:AP17) -> 0 | AR17: 132 | AS17: 0%
B18: Окружающий мир | C18: 1а | AQ18: 0 | AR18: =33*2 -> 66 | AS18: 0%
C19: 1б | AQ19: 0 | AR19: 66 | AS19: 0%
B20: ИЗО | C20: 1а | AQ20: 0 | AR20: =33*1 -> 33 | AS20: 0%
C21: 1б | AQ21: 0 | AR21: =33*1 -> 33 | AS21: 0%
B22: Музыка | C22: 1а | AQ22: 0 | AR22: 33 | AS22: 0%
C23: 1б | AQ23: 0 | AR23: 33 | AS23: 0%
B24: Труд (технология) | C24: 1а | AQ24: 0 | AR24: 33 | AS24: 0%
C25: 1б | AQ25: 0 | AR25: 33 | AS25: 0%
B26: Физическая культура | C26: 1а | AQ26: 0 | AR26: =33*3 -> 99 | AS26: 0%
C27: 1б | AQ27: 0 | AR27: =33*3 -> 99 | AS27: 0%
A29: 2 класс | E29: 2025/2026 учебный год | AQ29: Всего оценочных процедур за учебный год | AR29: Количество часов по УП | AS29: % соотношения количества оценочных процедур к количеству часов по УП
A30: Оценочная процедура/предмет | C30: класс | D30: месяц | E30: сентябрь | I30: октябрь | M30: ноябрь | Q30: декабрь | U30: январь | X30: февраль | AB30: март | AE30: апрель | AJ30: май | AM30: июнь
D31: неделя | E31: 1 | F31: 2 | G31: 3 | H31: 4 | I31: 5 | J31: 6 | K31: 7 | L31: 8 | M31: 9 | N31: 10 | O31: 11 | P31: 12 | Q31: 13 | R31: 14 | S31: 15 | T31: 16 | U31: 17 | V31: 18 | W31: 19 | X31: 20 | Y31: 21 | Z31: 22 | AA31: 23 | AB31: 24 | AC31: 25 | AD31: 26 | AE31: 27 | AF31: 28 | AG31: 29 | AH31: 30 | AI31: 31 | AJ31: 32 | AK31: 33 | AL31: 34 | AM31: 35 | AN31: 36 | AO31: 37 | AP31: 38
A32: Оценочные процедуры ОО | B32: Русский язык | C32: 2 | G32: КР | T32: КР | W32: КР | AA32: КР | AE32: КР | AI32: КР | AL32: КР | AQ32: =COUNTA(E32:AP32) -> 7 | AR32: =34*5 -> 170 | AS32: =AQ32/AR32 -> 4%
B33: Математика | C33: 2 | F33: КР | L33: КР | P33: КР | T33: КР | X33: КР | AD33: КР | AH33: КР | AL33: КР | AQ33: =COUNTA(E33:AP33) -> 8 | AR33: =34*4 -> 136 | AS33: =AQ33/AR33 -> 6%
B34: Литературное чтение | C34: 2 | G34: КР | J34: КР | S34: КР | W34: КР | AB34: КР | AE34: КР | AK34: КР | AQ34: =COUNTA(E34:AP34) -> 7 | AR34: =34*4 -> 136 | AS34: 5%
B35: Окружающий мир | C35: 2 | H35: КР | V35: КР | AK35: КР | AQ35: =COUNTA(E35:AP35) -> 3 | AR35: =34*2 -> 68 | AS35: 4%
B36: Иностранный язык (англ.) | C36: 2 | R36: КР | Z36: КР | AF36: КР | AL36: КР | AQ36: 4 | AR36: =34*2 -> 68 | AS36: 6%
B37: ИЗО | C37: 2 | AJ37: КР | AQ37: 1 | AR37: =34*1 -> 34 | AS37: 3%
B38: Музыка | C38: 2 | AJ38: КР | AQ38: 1 | AR38: =34*1 -> 34 | AS38: 3%
B39: Труд (технология) | C39: 2 | AJ39: КР | AQ39: 1 | AR39: 34 | AS39: 3%
B40: Физическая культура | C40: 2 | AQ40: 0 | AR40: =34*2 -> 68 | AS40: 0%
A42: 3 класс | E42: 2025/2026 учебный год | AQ42: Всего оценочных процедур за учебный год | AR42: Количество часов по УП | AS42: % соотношения количества оценочных процедур к количеству часов по УП
A43: Оценочная процедура/предмет | C43: класс | D43: месяц | E43: сентябрь | I43: октябрь | M43: ноябрь | Q43: декабрь | U43: январь | X43: февраль | AB43: март | AE43: апрель | AJ43: май | AM43: июнь
D44: неделя | E44: 1 | F44: 2 | G44: 3 | H44: 4 | I44: 5 | J44: 6 | K44: 7 | L44: 8 | M44: 9 | N44: 10 | O44: 11 | P44: 12 | Q44: 13 | R44: 14 | S44: 15 | T44: 16 | U44: 17 | V44: 18 | W44: 19 | X44: 20 | Y44: 21 | Z44: 22 | AA44: 23 | AB44: 24 | AC44: 25 | AD44: 26 | AE44: 27 | AF44: 28 | AG44: 29 | AH44: 30 | AI44: 31 | AJ44: 32 | AK44: 33 | AL44: 34 | AM44: 35 | AN44: 36 | AO44: 37 | AP44: 38
A45: Оценочные процедуры ОО | B45: Русский язык | C45: 3 | G45: КР | J45: КР | M45: КР | Q45: КР | V45: КР | AA45: КР | AD45: КР | AG45: КР | AK45: КР | AQ45: =COUNTA(E45:AP45) -> 9 | AR45: =34*5 -> 170 | AS45: =AQ45/AR45 -> 5%
B46: Математика | C46: 3 | H46: КР | K46: КР | N46: КР | R46: КР | W46: КР | AB46: КР | AE46: КР | AH46: КР | AL46: КР | AQ46: =COUNTA(E46:AP46) -> 9 | AR46: =34*4 -> 136 | AS46: =AQ46/AR46 -> 7%
B47: Литературное чтение | C47: 3 | I47: КР | T47: КР | AI47: КР | AQ47: =COUNTA(E47:AP47) -> 3 | AR47: =34*4 -> 136 | AS47: 2%
B48: Окружающий мир | C48: 3 | G48: КР | AJ48: КР | AQ48: =COUNTA(E48:AP48) -> 2 | AR48: =34*2 -> 68 | AS48: 3%
B49: Иностранный язык (англ.) | C49: 3 | K49: КР | T49: КР | AB49: КР | AK49: КР | AQ49: 4 | AR49: =34*2 -> 68 | AS49: 6%
B50: ИЗО | C50: 3 | AK50: КР | AQ50: 1 | AR50: =34*1 -> 34 | AS50: 3%
B51: Музыка | C51: 3 | AL51: КР | AQ51: 1 | AR51: =34*1 -> 34 | AS51: 3%
B52: Труд (технология) | C52: 3 | AJ52: КР | AQ52: 1 | AR52: 34 | AS52: 3%
B53: Физическая культура | C53: 3 | AQ53: 0 | AR53: =34*2 -> 68 | AS53: 0%
A55: 4 класс | E55: 2025/2026 учебный год | AQ55: Всего оценочных процедур за учебный год | AR55: Количество часов по УП | AS55: % соотношения количества оценочных процедур к количеству часов по УП
A56: Оценочная процедура/предмет | C56: класс | D56: месяц | E56: сентябрь | I56: октябрь | M56: ноябрь | Q56: декабрь | U56: январь | X56: февраль | AB56: март | AE56: апрель | AJ56: май | AM56: июнь
D57: неделя | E57: 1 | F57: 2 | G57: 3 | H57: 4 | I57: 5 | J57: 6 | K57: 7 | L57: 8 | M57: 9 | N57: 10 | O57: 11 | P57: 12 | Q57: 13 | R57: 14 | S57: 15 | T57: 16 | U57: 17 | V57: 18 | W57: 19 | X57: 20 | Y57: 21 | Z57: 22 | AA57: 23 | AB57: 24 | AC57: 25 | AD57: 26 | AE57: 27 | AF57: 28 | AG57: 29 | AH57: 30 | AI57: 31 | AJ57: 32 | AK57: 33 | AL57: 34 | AM57: 35 | AN57: 36 | AO57: 37 | AP57: 38
A58: Оценочные процедуры ОО | B58: Русский язык | C58: 4а | AK58: КР | AL58: КР | AQ58: =COUNTA(E58:AP58) -> 2 | AR58: =34*5 -> 170 | AS58: =AQ58/AR58 -> 1.18%
C59: 4б | AK59: КР | AL59: КР | AQ59: 2 | AR59: =34*5 -> 170 | AS59: 1.18%
B60: Математика | C60: 4а | F60: КР | J60: КР | P60: КР | T60: КР | Z60: КР | AF60: КР | AJ60: КР | AQ60: 7 | AR60: =34*4 -> 136 | AS60: 5.15%
C61: 4б | F61: КР | J61: КР | P61: КР | T61: КР | Z61: КР | AF61: КР | AJ61: КР | AQ61: 7 | AR61: =34*4 -> 136 | AS61: 5.15%
B62: Литературное чтение | C62: 4а | H62: КР | K62: КР | N62: КР | T62: КР | AA62: КР | AE62: КР | AH62: КР | AL62: КР | AQ62: 8 | AR62: =34*4 -> 136 | AS62: 5.88%
C63: 4б | H63: КР | K63: КР | N63: КР | T63: КР | AA63: КР | AE63: КР | AH63: КР | AL63: КР | AQ63: 8 | AR63: 136 | AS63: 5.88%
B64: Окружающий мир | C64: 4а | U64: КР | V64: КР | AI64: КР | AL64: КР | AQ64: 4 | AR64: =34*2 -> 68 | AS64: 5.88%
C65: 4б | U65: КР | V65: КР | AI65: КР | AL65: КР | AQ65: 4 | AR65: =34*2 -> 68 | AS65: 5.88%
B66: Иностранный язык (англ.) | C66: 4а | L66: КР | U66: КР | AC66: КР | AL66: КР | AQ66: 4 | AR66: =34*2 -> 68 | AS66: 5.88%
C67: 4б | L67: КР | U67: КР | AC67: КР | AL67: КР | AQ67: 4 | AR67: 68 | AS67: 5.88%
B68: Основы религиозных культур и светской этики | C68: 4а | AQ68: 0 | AR68: =34*1 -> 34 | AS68: 0.00%
C69: 4б | AQ69: 0 | AR69: =34*1 -> 34 | AS69: 0.00%
B70: ИЗО | C70: 4а | AQ70: 0 | AR70: 34 | AS70: 0.00%
C71: 4б | AQ71: 0 | AR71: 34 | AS71: 0.00%
B72: Музыка | C72: 4а | AQ72: 0 | AR72: 34 | AS72: 0.00%
C73: 4б | AQ73: 0 | AR73: 34 | AS73: 0.00%
B74: Труд (технология) | C74: 4а | AL74: КР | AQ74: 1 | AR74: 34 | AS74: 2.94%
C75: 4б | AL75: КР | AQ75: 1 | AR75: 34 | AS75: 2.94%
B76: Физическая культура | C76: 4а | AQ76: 0 | AR76: =34*2 -> 68 | AS76: 0.00%
C77: 4б | AQ77: 0 | AR77: 68 | AS77: 0.00%
A79: 5 класс | E79: 2025/2026 учебный год | AQ79: Всего оценочных процедур за учебный год | AR79: Количество часов по УП | AS79: % соотношения количества оценочных процедур к количеству часов по УП
A80: Оценочная процедура/предмет | D80: месяц | E80: сентябрь | I80: октябрь | M80: ноябрь | Q80: декабрь | U80: январь | X80: февраль | AB80: март | AE80: апрель | AJ80: май | AM80: июнь
D81: неделя | E81: 1 | F81: 2 | G81: 3 | H81: 4 | I81: 5 | J81: 6 | K81: 7 | L81: 8 | M81: 9 | N81: 10 | O81: 11 | P81: 12 | Q81: 13 | R81: 14 | S81: 15 | T81: 16 | U81: 17 | V81: 18 | W81: 19 | X81: 20 | Y81: 21 | Z81: 22 | AA81: 23 | AB81: 24 | AC81: 25 | AD81: 26 | AE81: 27 | AF81: 28 | AG81: 29 | AH81: 30 | AI81: 31 | AJ81: 32 | AK81: 33 | AL81: 34 | AM81: 35 | AN81: 36 | AO81: 37 | AP81: 38
A82: Оценочные процедуры ОО | B82: Русский язык | C82: 5а | F82: КР | O82: КР | R82: КР | X82: КР | AC82: КР | AF82: КР | AH82: ВПР | AK82: КР | AQ82: =COUNTA(E82:AP82) -> 8 | AR82: =34*5 -> 170 | AS82: =AQ82/AR82 -> 4.71%
C83: 5б | F83: КР | O83: КР | R83: КР | X83: КР | AC83: КР | AF83: КР | AH83: ВПР | AK83: КР | AQ83: 8 | AR83: =34*5 -> 170 | AS83: 4.71%
B84: Литература | C84: 5а | P84: КР | AJ84: КР | AQ84: 2 | AR84: =34*3 -> 102 | AS84: 1.96%
C85: 5б | P85: КР | AJ85: КР | AQ85: 2 | AR85: =34*3 -> 102 | AS85: 1.96%
B86: Иностранный язык (англ.) | C86: 5а | H86: КР | M86: КР | T86: КР | Z86: КР | AE86: КР | AL86: КР | AQ86: 6 | AR86: 102 | AS86: 5.88%
C87: 5б | H87: КР | M87: КР | T87: КР | Z87: КР | AE87: КР | AL87: КР | AQ87: 6 | AR87: 102 | AS87: 5.88%
B88: Математика | C88: 5а | M88: КР | Y88: КР | AI88: КР | AK88: КР | AQ88: 4 | AR88: =34*5 -> 170 | AS88: 2.35%
C89: 5б | M89: КР | Y89: КР | AI89: КР | AK89: КР | AQ89: 4 | AR89: 170 | AS89: 2.35%
B90: История | C90: 5а | AA90: КР | AF90: ВПР | AQ90: 2 | AR90: =34*3 -> 102 | AS90: 1.96%
C91: 5б | AA91: КР | AF91: ВПР | AQ91: 2 | AR91: 102 | AS91: 1.96%
B92: География | C92: 5а | X92: КР | AC92: КР | AK92: КР | AQ92: 3 | AR92: =34*1 -> 34 | AS92: 8.82%
C93: 5б | X93: КР | AC93: КР | AK93: КР | AQ93: 3 | AR93: =34*1 -> 34 | AS93: 8.82%
B94: Биология | C94: 5а | AH94: ВПР | AQ94: 1 | AR94: 34 | AS94: 2.94%
C95: 5б | AH95: ВПР | AQ95: 1 | AR95: 34 | AS95: 2.94%
B96: ИЗО | C96: 5а | AQ96: 0 | AR96: 34 | AS96: 0.00%
C97: 5б | AQ97: 0 | AR97: 34 | AS97: 0.00%
B98: Музыка | C98: 5а | AQ98: 0 | AR98: 34 | AS98: 0.00%
C99: 5б | AQ99: 0 | AR99: 34 | AS99: 0.00%
B100: Труд (технология) | C100: 5а | AQ100: 0 | AR100: =34*2 -> 68 | AS100: 0.00%
C101: 5б | AQ101: 0 | AR101: =34*2 -> 68 | AS101: 0.00%
B102: Физическая культура | C102: 5а | AQ102: 0 | AR102: 102 | AS102: 0.00%
C103: 5б | AQ103: 0 | AR103: 102 | AS103: 0.00%
A105: 6 класс | E105: 2025/2026 учебный год | AQ105: Всего оценочных процедур за учебный год | AR105: Количество часов по УП | AS105: % соотношения количества оценочных процедур к количеству часов по УП
A106: Оценочная процедура/предмет | D106: месяц | E106: сентябрь | I106: октябрь | M106: ноябрь | Q106: декабрь | U106: январь | X106: февраль | AB106: март | AE106: апрель | AJ106: май | AM106: июнь
D107: неделя | E107: 1 | F107: 2 | G107: 3 | H107: 4 | I107: 5 | J107: 6 | K107: 7 | L107: 8 | M107: 9 | N107: 10 | O107: 11 | P107: 12 | Q107: 13 | R107: 14 | S107: 15 | T107: 16 | U107: 17 | V107: 18 | W107: 19 | X107: 20 | Y107: 21 | Z107: 22 | AA107: 23 | AB107: 24 | AC107: 25 | AD107: 26 | AE107: 27 | AF107: 28 | AG107: 29 | AH107: 30 | AI107: 31 | AJ107: 32 | AK107: 33 | AL107: 34 | AM107: 35 | AN107: 36 | AO107: 37 | AP107: 38
A108: Оценочные процедуры ОО | B108: Русский язык | C108: 6а | F108: КР | K108: КР | N108: КР | R108: КР | T108: КР | X108: КР | AA108: КР | AJ108: ВПР | AK108: КР | AQ108: =COUNTA(E108:AP108) -> 9 | AR108: =34*6 -> 204 | AS108: =AQ108/AR108 -> 4.41%
C109: 6б | F109: КР | K109: КР | N109: КР | R109: КР | T109: КР | X109: КР | AA109: КР | AJ109: ВПР | AK109: КР | AQ109: 9 | AR109: =34*6 -> 204 | AS109: 4.41%
B110: Литература | C110: 6а | W110: КР | AG110: КР | AQ110: 2 | AR110: =34*3 -> 102 | AS110: 1.96%
C111: 6б | W111: КР | AG111: КР | AQ111: 2 | AR111: =34*3 -> 102 | AS111: 1.96%
B112: Иностранный язык (англ.) | C112: 6а | I112: КР | K112: КР | O112: КР | R112: КР | U112: КР | X112: КР | AA112: КР | AD112: КР | AH112: ВПР | AL112: КР | AQ112: 10 | AR112: 102 | AS112: 9.80%
C113: 6б | I113: КР | K113: КР | O113: КР | R113: КР | U113: КР | X113: КР | AA113: КР | AD113: КР | AH113: ВПР | AL113: КР | AQ113: 10 | AR113: 102 | AS113: 9.80%
B114: Математика | C114: 6а | J114: КР | P114: КР | W114: КР | AE114: КР | AJ114: КР | AQ114: 5 | AR114: =34*5 -> 170 | AS114: 2.94%
C115: 6б | J115: КР | P115: КР | W115: КР | AE115: КР | AJ115: КР | AQ115: 5 | AR115: =34*5 -> 170 | AS115: 2.94%
B116: История | C116: 6а | AG116: ВПР | AQ116: 1 | AR116: =34*3 -> 102 | AS116: 0.98%
C117: 6б | AG117: ВПР | AQ117: 1 | AR117: =34*3 -> 102 | AS117: 0.98%
B118: География | C118: 6а | M118: КР | Z118: КР | AF118: ВПР | AL118: КР | AQ118: 4 | AR118: =34*1 -> 34 | AS118: 11.76%
C119: 6б | M119: КР | Z119: КР | AF119: ВПР | AL119: КР | AQ119: 4 | AR119: =34*1 -> 34 | AS119: 11.76%
B120: Биология | C120: 6а | AE120: ВПР | AQ120: 1 | AR120: 34 | AS120: 2.94%
C121: 6б | AE121: ВПР | AQ121: 1 | AR121: 34 | AS121: 2.94%
B122: ИЗО | C122: 6а | AQ122: 0 | AR122: 34 | AS122: 0.00%
C123: 6б | AQ123: 0 | AR123: 34 | AS123: 0.00%
B124: Музыка | C124: 6а | AQ124: 0 | AR124: 34 | AS124: 0.00%
C125: 6б | AQ125: 0 | AR125: 34 | AS125: 0.00%
B126: Труд (технология) | C126: 6а | AQ126: 0 | AR126: =34*2 -> 68 | AS126: 0.00%
C127: 6б | AQ127: 0 | AR127: =34*2 -> 68 | AS127: 0.00%
B128: Физическая культура | C128: 6а | AQ128: 0 | AR128: 102 | AS128: 0.00%
C129: 6б | AQ129: 0 | AR129: 102 | AS129: 0.00%
A131: 7 класс | E131: 2025/2026 учебный год | AQ131: Всего оценочных процедур за учебный год | AR131: Количество часов по УП | AS131: % соотношения количества оценочных процедур к количеству часов по УП
A132: Оценочная процедура/предмет | D132: месяц | E132: сентябрь | I132: октябрь | M132: ноябрь | Q132: декабрь | U132: январь | X132: февраль | AB132: март | AE132: апрель | AJ132: май | AM132: июнь
D133: неделя | E133: 1 | F133: 2 | G133: 3 | H133: 4 | I133: 5 | J133: 6 | K133: 7 | L133: 8 | M133: 9 | N133: 10 | O133: 11 | P133: 12 | Q133: 13 | R133: 14 | S133: 15 | T133: 16 | U133: 17 | V133: 18 | W133: 19 | X133: 20 | Y133: 21 | Z133: 22 | AA133: 23 | AB133: 24 | AC133: 25 | AD133: 26 | AE133: 27 | AF133: 28 | AG133: 29 | AH133: 30 | AI133: 31 | AJ133: 32 | AK133: 33 | AL133: 34 | AM133: 35 | AN133: 36 | AO133: 37 | AP133: 38
A134: Оценочные процедуры ОО | B134: Русский язык | C134: 7 | F134: КР | P134: КР | T134: КР | Z134: КР | AK134: ВПР | AQ134: =COUNTA(E134:AP134) -> 5 | AR134: =34*4 -> 136 | AS134: =AQ134/AR134 -> 3.68%
B135: Литература | C135: 7 | V135: КР | AH135: КР | AQ135: 2 | AR135: =34*2 -> 68 | AS135: 2.94%
B136: Иностранный язык (англ.) | C136: 7 | I136: КР | L136: КР | O136: КР | R136: КР | U136: КР | X136: КР | AA136: КР | AD136: КР | AH136: ВПР | AL136: КР | AQ136: 10 | AR136: =34*3 -> 102 | AS136: 9.80%
B137: Алгебра | C137: 7 | L137: КР | V137: КР | AB137: КР | AJ137: КР | AQ137: 4 | AR137: =34*3 -> 102 | AS137: 3.92%
B138: Геометрия | C138: 7 | V138: КР | AC138: КР | AJ138: КР | AK138: КР | AQ138: 4 | AR138: =34*2 -> 68 | AS138: 5.88%
B139: Вероятность и статистика | C139: 7 | T139: КР | AI139: КР | AQ139: 2 | AR139: =34*1 -> 34 | AS139: 5.88%
B140: Информатика | C140: 7 | X140: КР | AH140: КР | AQ140: 2 | AR140: =34*1 -> 34 | AS140: 5.88%
B141: История | C141: 7 | AL141: КР | AQ141: 1 | AR141: =34*3 -> 102 | AS141: 0.98%
B142: География | C142: 7 | AE142: КР | AJ142: КР | AL142: КР | AQ142: 3 | AR142: =34*2 -> 68 | AS142: 4.41%
B143: Физика | C143: 7 | T143: КР | AG143: КР | AH143: ВПР | AK143: КР | AQ143: 4 | AR143: =34*2 -> 68 | AS143: 5.88%
B144: Биология | C144: 7 | AE144: ВПР | AQ144: 1 | AR144: =34*1 -> 34 | AS144: 2.94%
B145: ИЗО | C145: 7 | AQ145: 0 | AR145: =34*1 -> 34 | AS145: 0.00%
B146: Музыка | C146: 7 | AQ146: 0 | AR146: 34 | AS146: 0.00%
B147: Труд (технология) | C147: 7 | AQ147: 0 | AR147: =34*2 -> 68 | AS147: 0.00%
B148: Физическая культура | C148: 7 | AQ148: 0 | AR148: 102 | AS148: 0.00%
A150: 8 класс | E150: 2025/2026 учебный год | AQ150: Всего оценочных процедур за учебный год | AR150: Количество часов по УП | AS150: % соотношения количества оценочных процедур к количеству часов по УП
A151: Оценочная процедура/предмет | D151: месяц | E151: сентябрь | I151: октябрь | M151: ноябрь | Q151: декабрь | U151: январь | X151: февраль | AB151: март | AE151: апрель | AJ151: май | AM151: июнь
D152: неделя | E152: 1 | F152: 2 | G152: 3 | H152: 4 | I152: 5 | J152: 6 | K152: 7 | L152: 8 | M152: 9 | N152: 10 | O152: 11 | P152: 12 | Q152: 13 | R152: 14 | S152: 15 | T152: 16 | U152: 17 | V152: 18 | W152: 19 | X152: 20 | Y152: 21 | Z152: 22 | AA152: 23 | AB152: 24 | AC152: 25 | AD152: 26 | AE152: 27 | AF152: 28 | AG152: 29 | AH152: 30 | AI152: 31 | AJ152: 32 | AK152: 33 | AL152: 34 | AM152: 35 | AN152: 36 | AO152: 37 | AP152: 38
A153: Оценочные процедуры ОО | B153: Русский язык | C153: 8а | F153: КР | J153: КР | P153: КР | U153: КР | AD153: КР | AK153: КР | AQ153: =COUNTA(E153:AP153) -> 6 | AR153: =34*3 -> 102 | AS153: =AQ153/AR153 -> 5.88%
C154: 8б | F154: КР | J154: КР | P154: КР | U154: КР | AD154: КР | AK154: КР | AQ154: =COUNTA(E154:AP154) -> 6 | AR154: =34*3 -> 102 | AS154: 5.88%
B155: Литература | C155: 8а | W155: КР | AH155: КР | AQ155: 2 | AR155: =34*2 -> 68 | AS155: 2.94%
C156: 8б | W156: КР | AH156: КР | AQ156: 2 | AR156: =34*2 -> 68 | AS156: 2.94%
B157: Иностранный язык (англ.) | C157: 8а | I157: КР | L157: КР | P157: КР | T157: КР | W157: КР | Z157: КР | AC157: КР | AG157: ВПР | AL157: КР | AQ157: 9 | AR157: =34*3 -> 102 | AS157: 8.82%
C158: 8б | I158: КР | L158: КР | P158: КР | T158: КР | W158: КР | Z158: КР | AC158: КР | AG158: ВПР | AL158: КР | AQ158: 9 | AR158: 102 | AS158: 8.82%
B159: Алгебра | C159: 8а | O159: КР | T159: КР | W159: КР | AE159: КР | AK159: ВПР | AQ159: 5 | AR159: 102 | AS159: 4.90%
C160: 8б | O160: КР | T160: КР | W160: КР | AE160: КР | AK160: ВПР | AQ160: 5 | AR160: 102 | AS160: 4.90%
B161: Геометрия | C161: 8а | J161: КР | R161: КР | X161: КР | AC161: КР | AK161: КР | AL161: КР | AQ161: 6 | AR161: =34*2 -> 68 | AS161: 8.82%
C162: 8б | J162: КР | R162: КР | X162: КР | AC162: КР | AK162: КР | AL162: КР | AQ162: 6 | AR162: 68 | AS162: 8.82%
B163: Вероятность и статистика | C163: 8а | Q163: КР | AL163: КР | AQ163: 2 | AR163: =34*1 -> 34 | AS163: 5.88%
C164: 8б | Q164: КР | AL164: КР | AQ164: 2 | AR164: =34*1 -> 34 | AS164: 5.88%
B165: Информатика | C165: 8а | P165: КР | AI165: КР | AQ165: 2 | AR165: 34 | AS165: 5.88%
C166: 8б | P166: КР | AI166: КР | AQ166: 2 | AR166: 34 | AS166: 5.88%
B167: История | C167: 8а | AI167: КР | AQ167: 1 | AR167: 76.5 | AS167: 1.31%
C168: 8б | AI168: КР | AQ168: 1 | AR168: 76.5 | AS168: 1.31%
B169: Обществознание | C169: 8а | X169: КР | AQ169: 1 | AR169: 34 | AS169: =AQ169/AR169 -> 2.94%
C170: 8б | X170: КР | AQ170: 1 | AR170: 34 | AS170: 2.94%
B171: География | C171: 8а | X171: КР | AI171: ВПР | AQ171: 2 | AR171: =34*2 -> 68 | AS171: 2.94%
C172: 8б | X172: КР | AI172: ВПР | AQ172: 2 | AR172: 68 | AS172: 2.94%
B173: Физика | C173: 8а | R173: КР | AG173: КР | AH173: ВПР | AK173: КР | AQ173: 4 | AR173: 68 | AS173: 5.88%
C174: 8б | R174: КР | AG174: КР | AH174: ВПР | AK174: КР | AQ174: 4 | AR174: 68 | AS174: 5.88%
B175: Химия | C175: 8а | N175: КР | W175: КР | AC175: КР | AG175: ВПР | AH175: КР | AQ175: 5 | AR175: 68 | AS175: 7.35%
C176: 8б | N176: КР | W176: КР | AC176: КР | AG176: ВПР | AH176: КР | AQ176: 5 | AR176: 68 | AS176: 7.35%
B177: Биология | C177: 8а | AG177: ВПР | AQ177: 1 | AR177: 68 | AS177: 1.47%
C178: 8б | AG178: ВПР | AQ178: 1 | AR178: 68 | AS178: 1.47%
B179: Музыка | C179: 8а | AQ179: 0 | AR179: =34*1 -> 34 | AS179: 0.00%
C180: 8б | AQ180: 0 | AR180: 34 | AS180: 0.00%
B181: Труд (технология) | C181: 8а | AQ181: 0 | AR181: 34 | AS181: 0.00%
C182: 8б | AQ182: 0 | AR182: 34 | AS182: 0.00%
B183: Основы безопасности и защиты Родины | C183: 8а | H183: КР | R183: КР | AK183: КР | AQ183: 3 | AR183: 34 | AS183: 8.82%
C184: 8б | H184: КР | R184: КР | AK184: КР | AQ184: 3 | AR184: 34 | AS184: 8.82%
B185: Физическая культура | C185: 8а | AQ185: 0 | AR185: 102 | AS185: 0.00%
C186: 8б | AQ186: 0 | AR186: 102 | AS186: 0.00%
A188: 9 класс | E188: 2025/2026 учебный год | AQ188: Всего оценочных процедур за учебный год | AR188: Количество часов по УП | AS188: % соотношения количества оценочных процедур к количеству часов по УП
A189: Оценочная процедура/предмет | D189: месяц | E189: сентябрь | I189: октябрь | M189: ноябрь | Q189: декабрь | U189: январь | X189: февраль | AB189: март | AE189: апрель | AJ189: май | AM189: июнь
D190: неделя | E190: 1 | F190: 2 | G190: 3 | H190: 4 | I190: 5 | J190: 6 | K190: 7 | L190: 8 | M190: 9 | N190: 10 | O190: 11 | P190: 12 | Q190: 13 | R190: 14 | S190: 15 | T190: 16 | U190: 17 | V190: 18 | W190: 19 | X190: 20 | Y190: 21 | Z190: 22 | AA190: 23 | AB190: 24 | AC190: 25 | AD190: 26 | AE190: 27 | AF190: 28 | AG190: 29 | AH190: 30 | AI190: 31 | AJ190: 32 | AK190: 33 | AL190: 34 | AM190: 35 | AN190: 36 | AO190: 37 | AP190: 38
A191: Оценочные процедуры ОО | B191: Русский язык | C191: 9а | G191: КР | Q191: КР | AA191: КР | AF191: КР | AK191: КР | AQ191: =COUNTA(E191:AP191) -> 5 | AR191: =34*3 -> 102 | AS191: =AQ191/AR191 -> 4.90%
C192: 9б | G192: КР | Q192: КР | AA192: КР | AF192: КР | AK192: КР | AQ192: 5 | AR192: =34*3 -> 102 | AS192: 4.90%
B193: Литература | C193: 9а | U193: КР | AH193: КР | AQ193: 2 | AR193: 102 | AS193: 1.96%
C194: 9б | U194: КР | AH194: КР | AQ194: 2 | AR194: 102 | AS194: 1.96%
B195: Иностранный язык (англ.) | C195: 9а | I195: КР | M195: КР | Q195: КР | U195: КР | Y195: КР | AB195: КР | AE195: КР | AH195: КР | AL195: КР | AQ195: 9 | AR195: 102 | AS195: 8.82%
C196: 9б | I196: КР | M196: КР | Q196: КР | U196: КР | Y196: КР | AB196: КР | AE196: КР | AH196: КР | AL196: КР | AQ196: 9 | AR196: 102 | AS196: 8.82%
B197: Алгебра | C197: 9а | L197: КР | P197: КР | V197: КР | AA197: КР | AF197: КР | AL197: КР | AQ197: 6 | AR197: 102 | AS197: 5.88%
C198: 9б | L198: КР | P198: КР | V198: КР | AA198: КР | AF198: КР | AL198: КР | AQ198: 6 | AR198: 102 | AS198: 5.88%
B199: Геометрия | C199: 9а | L199: КР | Q199: КР | U199: КР | AB199: КР | AI199: КР | AL199: КР | AQ199: 6 | AR199: 68 | AS199: 8.82%
C200: 9б | L200: КР | Q200: КР | U200: КР | AB200: КР | AI200: КР | AL200: КР | AQ200: 6 | AR200: 68 | AS200: 8.82%
B201: Вероятность и статистика | C201: 9а | AK201: КР | AQ201: 1 | AR201: =34*1 -> 34 | AS201: 2.94%
C202: 9б | AK202: КР | AQ202: 1 | AR202: =34*1 -> 34 | AS202: 2.94%
B203: Информатика | C203: 9а | R203: КР | X203: КР | AQ203: 2 | AR203: 34 | AS203: 5.88%
C204: 9б | R204: КР | X204: КР | AQ204: 2 | AR204: 34 | AS204: 5.88%
B205: История | C205: 9а | AQ205: 0 | AR205: 85 | AS205: 0.00%
C206: 9б | AQ206: 0 | AR206: 85 | AS206: 0.00%
B207: Обществознание | C207: 9а | S207: КР | AI207: КР | AQ207: 2 | AR207: 34 | AS207: 5.88%
C208: 9б | S208: КР | AI208: КР | AQ208: 2 | AR208: 34 | AS208: 5.88%
... 52 more rows
